fUST/lending_fUST_20240518
["ID","MTS","AMOUNT","RATE_DAILY","PERIOD"]
[327299805,1715974239255,-500.0,0.00016438,2]
[327299808,1715974239268,-500.0,0.00016438,2]
[327299811,1715974239278,-508.46671421,0.00016438,2]
[327299814,1715974239288,-500.69722533,0.00016438,2]
[327299817,1715974239298,-500.0,0.00016438,2]
[327299820,1715974239308,-299.6376765,0.00016438,2]
[327299823,1715974239318,-500.0,0.00016438,2]
[327299826,1715974239328,-500.0,0.00016438,2]
[327299829,1715974239338,-500.0,0.00016438,2]
[327299832,1715974239349,-500.0,0.00016438,2]
[327299835,1715974239359,-500.0,0.00016438,2]
[327299838,1715974239370,-500.0,0.00016438,2]
[327299841,1715974239380,-500.0,0.00016438,2]
[327299844,1715974239390,-500.0,0.00016438,2]
[327299847,1715974239401,-500.0,0.00016438,2]
[327299850,1715974239411,-572.20448515,0.00016438,2]
[327299854,1715974239421,-500.0,0.00016438,2]
[327299856,1715974239431,-500.0,0.00016438,2]
[327299859,1715974239441,-500.0,0.00016438,2]
[327299862,1715974239451,-631.83089117,0.00016438,2]
[327299865,1715974239461,-500.0,0.00016438,2]
[327299868,1715974239471,-500.0,0.00016438,2]
[327299871,1715974239481,-500.0,0.00016438,2]
[327299873,1715974239491,-611.28564328,0.00016438,2]
[327299877,1715974239501,-500.0,0.00016438,2]
[327299879,1715974239511,-501.73717795,0.00016438,2]
[327299882,1715974239521,-500.0,0.00016438,2]
[327299885,1715974239530,-591.29285216,0.00016438,2]
[327299888,1715974239540,-500.0,0.00016438,2]
[327299891,1715974239549,-500.0,0.00016438,2]
[327299893,1715974239558,-622.72419462,0.00016438,2]
[327299895,1715974239568,-232.69676749,0.00016438,2]
[327299899,1715974239581,-267.30323251,0.00016438,2]
[327299902,1715974239591,-602.2888841,0.00016438,2]
[327299905,1715974239601,-500.0,0.00016438,2]
[327299908,1715974239611,-156.29788339,0.00016438,2]
[327299912,1715974239631,-343.70211661,0.00016438,2]
[327299914,1715974239641,-500.0,0.00016438,2]
[327299916,1715974239651,-607.4083576,0.00016438,2]
[327299918,1715974239661,-500.0,0.00016438,2]
[327299920,1715974239671,-500.0,0.00016438,2]
[327299922,1715974239681,-534.09975849,0.00016438,2]
[327299924,1715974239691,-512.12,0.00016438,2]
[327299926,1715974239701,-500.0,0.00016438,2]
[327299928,1715974239711,-500.0,0.00016438,2]
[327299930,1715974239720,-554.8736587,0.00016438,2]
[327299932,1715974239729,-500.0,0.00016438,2]
[327299934,1715974239739,-303.35664906,0.00016438,2]
[327299936,1715974239748,-500.0,0.00016438,2]
[327299938,1715974239757,-500.0,0.00016438,2]
[327299939,1715974239767,-500.0,0.00016438,2]
[327299941,1715974239777,-500.0,0.00016438,2]
[327299943,1715974239787,-500.0,0.00016438,2]
[327299945,1715974239797,-500.0,0.00016438,2]
[327299947,1715974239807,-500.0,0.00016438,2]
[327299949,1715974239816,-500.0,0.00016438,2]
[327299951,1715974239826,-500.0,0.00016438,2]
[327299953,1715974239840,-500.0,0.00016438,2]
[327299955,1715974239850,-500.0,0.00016438,2]
[327299957,1715974239860,-471.69264885,0.00016438,2]
[327299959,1715974239869,-500.0,0.00016438,2]
[327299961,1715974239879,-500.0,0.00016438,2]
[327299963,1715974239889,-500.0,0.00016438,2]
[327299965,1715974239900,-500.0,0.00016438,2]
[327299967,1715974239910,-500.0,0.00016438,2]
[327299970,1715974239921,-500.0,0.00016438,2]
[327299971,1715974239931,-500.0,0.00016438,2]
[327299973,1715974239941,-500.0,0.00016438,2]
[327299975,1715974239952,-500.0,0.00016438,2]
[327299977,1715974239962,-500.0,0.00016438,2]
[327299979,1715974239971,-500.0,0.00016438,2]
[327299981,1715974239981,-500.0,0.00016438,2]
[327299983,1715974239992,-500.0,0.00016438,2]
[327299985,1715974240004,-500.0,0.00016438,2]
[327299987,1715974240013,-500.0,0.00016438,2]
[327299989,1715974240023,-500.0,0.00016438,2]
[327299991,1715974240035,-500.0,0.00016438,2]
[327299993,1715974240044,-500.0,0.00016438,2]
[327299995,1715974240054,-500.0,0.00016438,2]
[327299997,1715974240063,-500.0,0.00016438,2]
[327299999,1715974240073,-500.0,0.00016438,2]
[327300001,1715974240085,-500.0,0.00016438,2]
[327300003,1715974240096,-312.72951874,0.00016438,2]
[327300005,1715974240107,-500.0,0.00016438,2]
[327300007,1715974240117,-500.0,0.00016438,2]
[327300009,1715974240127,-509.31501629,0.00016438,2]
[327300011,1715974240137,-500.0,0.00016438,2]
[327300013,1715974240146,-500.0,0.00016438,2]
[327300015,1715974240156,-504.6192332,0.00016438,2]
[327300017,1715974240165,-500.0,0.00016438,2]
[327300019,1715974240175,-500.0,0.00016438,2]
[327300021,1715974240185,-500.0,0.00016438,2]
[327300023,1715974240195,-500.0,0.00016438,2]
[327300025,1715974240205,-500.0,0.00016438,2]
[327300027,1715974240214,-500.0,0.00016438,2]
[327300029,1715974240225,-500.0,0.00016438,2]
[327300031,1715974240235,-500.0,0.00016438,2]
[327300033,1715974240244,-260.85550723,0.00016438,2]
[327300035,1715974240255,-500.0,0.00016438,2]
[327300037,1715974240265,-500.0,0.00016438,2]
[327300039,1715974240275,-500.0,0.00016438,2]
[327300041,1715974240285,-500.0,0.00016438,2]
[327300043,1715974240295,-500.0,0.00016438,2]
[327300045,1715974240305,-500.0,0.00016438,2]
[327300047,1715974240315,-500.0,0.00016438,2]
[327300049,1715974240325,-500.0,0.00016438,2]
[327300051,1715974240335,-500.0,0.00016438,2]
[327300053,1715974240345,-502.00452264,0.00016438,2]
[327300055,1715974240355,-500.0,0.00016438,2]
[327300057,1715974240365,-500.0,0.00016438,2]
[327300059,1715974240376,-500.0,0.00016438,2]
[327300061,1715974240385,-500.0,0.00016438,2]
[327300063,1715974240395,-500.0,0.00016438,2]
[327300065,1715974240405,-500.0,0.00016438,2]
[327300067,1715974240415,-500.0,0.00016438,2]
[327300069,1715974240425,-500.0,0.00016438,2]
[327300070,1715974240435,-500.0,0.00016438,2]
[327300072,1715974240445,-517.72763092,0.00016438,2]
[327300074,1715974240456,-500.0,0.00016438,2]
[327300076,1715974240466,-500.0,0.00016438,2]
[327300078,1715974240477,-500.0,0.00016438,2]
[327300080,1715974240487,-500.0,0.00016438,2]
[327300082,1715974240497,-500.0,0.00016438,2]
[327300084,1715974240507,-500.0,0.00016438,2]
[327300086,1715974240517,-620.15,0.00016438,2]
[327300088,1715974240527,-500.0,0.00016438,2]
[327300090,1715974240537,-500.0,0.00016438,2]
[327300092,1715974240548,-531.25128795,0.00016438,2]
[327300094,1715974240558,-500.0,0.00016438,2]
[327300096,1715974240568,-500.0,0.00016438,2]
[327300098,1715974240577,-500.0,0.00016438,2]
[327300101,1715974240588,-500.0,0.00016438,2]
[327300102,1715974240597,-500.0,0.00016438,2]
[327300104,1715974240607,-500.0,0.00016438,2]
[327300106,1715974240616,-500.0,0.00016438,2]
[327300108,1715974240626,-500.0,0.00016438,2]
[327300110,1715974240637,-500.0,0.00016438,2]
[327300112,1715974240647,-500.0,0.00016438,2]
[327300114,1715974240656,-580.71380293,0.00016438,2]
[327300116,1715974240666,-500.0,0.00016438,2]
[327300118,1715974240676,-500.0,0.00016438,2]
[327300121,1715974240686,-500.0,0.00016438,2]
[327300123,1715974240696,-500.0,0.00016438,2]
[327300126,1715974240706,-500.0,0.00016438,2]
[327300128,1715974240716,-500.0,0.00016438,2]
[327300131,1715974240726,-500.0,0.00016438,2]
[327300134,1715974240736,-500.0,0.00016438,2]
[327300136,1715974240746,-500.0,0.00016438,2]
[327300139,1715974240756,-500.0,0.00016438,2]
[327300141,1715974240765,-500.0,0.00016438,2]
[327300144,1715974240775,-476.74124344,0.00016438,2]
[327300146,1715974240784,-500.0,0.00016438,2]
[327300147,1715974240794,-500.0,0.00016438,2]
[327300149,1715974240804,-539.24,0.00016438,4]
[327300151,1715974240814,-193.55,0.00016438,2]
[327300152,1715974240824,-500.0,0.00016438,2]
[327300154,1715974240834,-500.0,0.00016438,2]
[327300156,1715974240843,-500.0,0.00016438,2]
[327300157,1715974240853,-447.44182356,0.00016438,2]
[327300159,1715974240862,-500.0,0.00016438,2]
[327300161,1715974240872,-500.0,0.00016438,2]
[327300163,1715974240882,-500.0,0.00016438,2]
[327300171,1715974241014,-500.0,0.00016438,2]
[327300173,1715974241024,-500.0,0.00016438,2]
[327300175,1715974241035,-500.0,0.00016438,2]
[327300177,1715974241044,-500.0,0.00016438,2]
[327300179,1715974241053,-500.0,0.00016438,2]
[327300180,1715974241062,-500.0,0.00016438,2]
[327300182,1715974241073,-502.05346528,0.00016438,2]
[327300184,1715974241082,-500.90975211,0.00016438,2]
[327300186,1715974241092,-500.0,0.00016438,2]
[327300188,1715974241101,-500.0,0.00016438,2]
[327300190,1715974241110,-502.83411061,0.00016438,2]
[327300192,1715974241119,-500.0,0.00016438,2]
[327300194,1715974241129,-150.0,0.00016438,2]
[327300196,1715974241138,-1702.72,0.00016438,2]
[327300198,1715974241147,-500.0,0.00016438,2]
[327300199,1715974241157,-519.7779062,0.00016438,2]
[327300201,1715974241166,-500.0,0.00016438,2]
[327300203,1715974241176,-500.0,0.00016438,2]
[327300206,1715974241186,-198.00621361,0.00016438,2]
[327300208,1715974241197,-500.0,0.00016438,2]
[327300209,1715974241206,-500.0,0.00016438,2]
[327300210,1715974241215,-500.0,0.00016438,2]
[327300211,1715974241224,-501.58210145,0.00016438,2]
[327300212,1715974241233,-1236.39,0.00016438,2]
[327300213,1715974241243,-500.0,0.00016438,2]
[327300214,1715974241253,-500.0,0.00016438,2]
[327300215,1715974241262,-500.0,0.00016438,2]
[327300216,1715974241271,-500.0,0.00016438,2]
[327300217,1715974241280,-500.0,0.00016438,2]
[327300218,1715974241289,-500.0,0.00016438,2]
[327300219,1715974241298,-648.08,0.00016438,2]
[327300220,1715974241307,-500.0,0.00016438,2]
[327300221,1715974241316,-214.05367453,0.00016438,2]
[327300222,1715974241331,-285.94632547,0.00016438,2]
[327300223,1715974241340,-213.82934269,0.00016438,2]
[327300235,1715974241497,-286.17065731,0.00016438,2]
[327300237,1715974241507,-71.62600481,0.00016438,2]
[327300410,1715974248538,-181.45563285,0.00016436,2]
[327300411,1715974248548,-3632.73436715,0.00016436,2]
[327300412,1715974248560,-345.00673985,0.00016436,2]
[327300413,1715974248571,-3611.585,0.00016436,2]
[327300414,1715974271961,270.23924644,0.00016434,7]
[327300415,1715974404493,1581.20220046,9.999e-05,2]
[327300416,1715974410703,1716.62098532,9.999e-05,2]
[327300417,1715974438006,390.09608043,9.999e-05,2]
[327300418,1715974447049,528.36551602,9.999e-05,2]
[327300419,1715974475720,14332.20492863,9.999e-05,2]
[327300420,1715974475759,2091.81530642,9.999e-05,2]
[327300421,1715974477358,281.31656163,9.999e-05,2]
[327300422,1715974482631,238.72491025,9.999e-05,2]
[327300423,1715974587207,154.70605849,9.999e-05,2]
[327300427,1715974617935,154.70605849,9.999e-05,2]
[327300431,1715974673486,1094.84700582,9.999e-05,2]
[327300432,1715974676064,1417.81923321,9.999e-05,2]
[327300433,1715974679801,186.86508832,9.999e-05,2]
[327300434,1715974697705,181.45563285,9.999e-05,2]
[327300435,1715974746992,157.91467169,9.999e-05,2]
[327300436,1715974913937,452.46697714,9.999e-05,2]
[327300439,1715975004605,477.36249569,9.999e-05,2]
[327300440,1715975004633,250.0,9.999e-05,2]
[327300441,1715975004657,690.45673752,9.999e-05,2]
[327300442,1715975010236,181.45563285,9.999e-05,2]
[327300443,1715975198187,128.08762963,9.999e-05,2]
[327300444,1715975198216,273.37336231,9.999e-05,2]
[327300445,1715975198239,273.37336231,9.999e-05,2]
[327300446,1715975198265,742.98487896,9.999e-05,2]
[327300447,1715975228157,-868.71123469,0.00011288,2]
[327300448,1715975228180,-9397.51147343,0.000114,2]
[327300449,1715975228201,-6959.65006747,0.00011401,2]
[327300450,1715975230132,-1482.10726381,0.00011401,2]
[327300451,1715975243160,-7572.48099382,0.000114,2]
[327300452,1715975249170,-1825.03047961,0.000114,2]
[327300453,1715975249189,-1116.3909032,0.00011401,2]
[327300454,1715975249209,-2678.41581431,0.00011402,2]
[327300455,1715975249228,-8033.95048386,0.00011402,2]
[327300456,1715975253122,-2473.29997348,0.00011402,2]
[327300457,1715975253143,-26204.08668533,0.00011402,2]
[327300458,1715975253164,-24900.0,0.00011404,2]
[327300459,1715975253184,-708.95161168,0.00012405,2]
[327300460,1715975253205,-164.05817459,0.00012445,2]
[327300461,1715975253224,-657.4915143,0.00012492,2]
[327300462,1715975253245,-164.05817455,0.00012496,2]
[327300463,1715975253265,-175.9484814,0.00012541,2]
[327300464,1715975253285,-164.05817455,0.00012546,2]
[327300465,1715975253305,-567.79450597,0.0001255,2]
[327300466,1715975253328,-909.01656904,0.0001255,2]
[327300467,1715975253347,-258.03684708,0.0001256,2]
[327300468,1715975253368,-268.16352056,0.0001256,2]
[327300469,1715975253387,-2086.77068731,0.00012594,2]
[327300470,1715975253417,-164.05817455,0.00012597,2]
[327300471,1715975253443,-164.05817455,0.00012648,2]
[327300472,1715975253468,-186.55664726,0.00012693,2]
[327300473,1715975253489,-2004.11949604,0.00012694,2]
[327300474,1715975253516,-849.74598952,0.00012694,2]
[327300475,1715975253539,-164.05817455,0.00012699,2]
[327300476,1715975253564,-157.1347557,0.00012749,2]
[327300477,1715975288114,273.37336231,9.9e-05,2]
[327300478,1715975298042,273.37336231,9.9e-05,2]
[327300479,1715975300948,835.37838863,9.999e-05,2]
[327300480,1715975306663,273.37336231,9.9e-05,2]
[327300481,1715975348386,-6.92341885,0.00012749,2]
[327300482,1715975348408,-164.05817455,0.000128,2]
[327300483,1715975348428,-10507.25045734,0.00012897,2]
[327300484,1715975348452,-9397.51147343,0.00012898,2]
[327300485,1715975348471,-9558.14823448,0.00012898,2]
[327300486,1715975348491,-2596.99709495,0.00012899,2]
[327300487,1715975348512,-1249.13236827,0.000129,2]
[327300488,1715975348533,-26204.08668533,0.00013687,2]
[327300489,1715975348554,-595.3962905,0.00013688,2]
[327300490,1715975348575,-423.617401,0.00013688,2]
[327300491,1715975348596,-379.19063668,0.00013689,2]
[327300492,1715975348620,-154.92237436,0.00013689,2]
[327300493,1715975348641,-2787.14117433,0.0001369,2]
[327300494,1715975348661,-59394.25240706,0.00013692,2]
[327300495,1715975348682,-7893.2342889,0.00013694,2]
[327300496,1715975348704,-415.552465,0.00013699,2]
[327300497,1715975348724,-216.2891354,0.00013699,2]
[327300498,1715975348745,-154.96874047,0.00014634,2]
[327300499,1715975348766,-206.13640865,0.00014635,2]
[327300500,1715975348787,-154.82968734,0.00014641,2]
[327300501,1715975348807,-13572.55968602,0.00014642,2]
[327300502,1715975348828,-803.36916615,0.00014647,2]
[327300503,1715975348851,-207.16522173,0.00014744,2]
[327300504,1715975348872,-155.16954056,0.00014744,2]
[327300505,1715975348894,-817.80441059,0.00014744,2]
[327300506,1715975348914,-389.93123142,0.00014744,2]
[327300507,1715975348937,-1042.78198065,0.00014744,2]
[327300508,1715975348958,-163.17955623,0.00014744,2]
[327300509,1715975348979,-189.55440765,0.00014748,2]
[327300510,1715975353069,410.4004372,9.999e-05,2]
[327300511,1715975359669,3332.50036883,0.00012895,2]
[327300512,1715975359689,2041.63286843,0.00012895,2]
[327300513,1715975359709,3226.97033369,0.00012895,2]
[327300514,1715975362103,-1906.14688639,0.00012895,2]
[327300515,1715975362125,-2596.99709495,0.00012895,2]
[327300541,1715975409646,207.776232,0.00013993,2]
[327300584,1715975431930,-426.96511952,0.000148,2]
[327300586,1715975431939,-384.81216849,0.000149,2]
[327300588,1715975431948,-934.09334975,0.000149,2]
[327300589,1715975431957,-9558.14823448,0.0001499,2]
[327300590,1715975431966,-59394.25240706,0.00014991,2]
[327300591,1715975431976,-154.87594702,0.00014992,2]
[327300592,1715975431984,-1349.86150143,0.00014992,2]
[327300593,1715975431994,-20242.64636658,0.00014992,2]
[327300594,1715975432003,-626.26554978,0.00014993,2]
[327300595,1715975432011,-541.9699848,0.00014997,2]
[327300596,1715975432020,-2596.99709495,0.00014997,2]
[327300597,1715975432030,-8366.75772395,0.00014998,2]
[327300598,1715975432039,-409.98831424,0.00014998,2]
[327300599,1715975432048,-16668.26275433,0.00014999,2]
[327300600,1715975432057,-942.40757179,0.00015,2]
[327300601,1715975432066,-2795.18883811,0.00015,2]
[327300602,1715975432075,-5367.63784431,0.00015,2]
[327300673,1715975437927,-74632.36215569,0.00015,2]
[327300675,1715975437937,-1148.90229176,0.00015,2]
[327300677,1715975437947,-2107.25657902,0.00015,2]
[327300679,1715975437956,-1682.85215345,0.00015,2]
[327300681,1715975437965,-934.09334975,0.00015328,2]
[327300683,1715975437974,-153.0,0.0001574,2]
[327300685,1715975437983,-934.09334975,0.00015756,2]
[327300687,1715975437993,-300.0,0.00015802,2]
[327300689,1715975438001,-326.37134528,0.00015991,2]
[327300691,1715975438011,-397.4241624,0.00015991,2]
[327300693,1715975438020,-194.39619019,0.00015991,2]
[327300695,1715975438029,-1801.36957745,0.00015991,2]
[327300697,1715975438038,-302.9044461,0.00015991,2]
[327300699,1715975438047,-736.08882349,0.00015991,2]
[327300701,1715975438056,-3154.8140198,0.00015991,2]
[327300703,1715975438065,-155.42567318,0.00015991,2]
[327300705,1715975438075,-298.47777015,0.00015991,2]
[327300707,1715975438084,-234.07940294,0.00015991,2]
[327300709,1715975438093,-303.78720409,0.00015991,2]
[327300711,1715975438101,-154.79876161,0.00015991,2]
[327300713,1715975438110,-154.82968734,0.00015991,2]
[327300715,1715975438119,-1580.15083564,0.00015991,2]
[327300717,1715975438129,-866.45229687,0.00015991,2]
[327300719,1715975438138,-1495.65941735,0.00015991,2]
[327300721,1715975438147,-243.62027154,0.00015992,2]
[327300723,1715975438156,-211.6765572,0.00015992,2]
[327300725,1715975438165,-718.63279149,0.00015992,2]
[327300727,1715975438174,-1866.08383141,0.00015995,2]
[327300729,1715975438183,-154.73694719,0.00015995,2]
[327300731,1715975438192,-154.75240234,0.00015995,2]
[327300733,1715975438201,-2114.19374467,0.00015995,2]
[327300735,1715975438210,-309.4121139,0.00015995,2]
[327300737,1715975438218,-156.5360369,0.00015995,2]
[327300739,1715975438227,-158.23027563,0.00015995,2]
[327300741,1715975438236,-628.92344938,0.00015995,2]
[327300743,1715975438245,-204.29915358,0.00015995,2]
[327300745,1715975438254,-5104.32974661,0.00016,2]
[327300747,1715975438270,-2861.96300562,0.00016,2]
[327300749,1715975438280,-934.09334975,0.00016184,2]
[327300751,1715975438289,-2000.0,0.00016184,2]
[327300753,1715975438298,-416.98047207,0.00016268,2]
[327300755,1715975438307,-1186.26784691,0.00016335,3]
[327300757,1715975438316,-8000.07532562,0.00016335,2]
[327300759,1715975438327,-261.741,0.00016335,2]
[327300960,1715975440229,-45128.01685187,0.00016335,2]
[327300962,1715975440239,-4221.46001999,0.00016416,2]
[327300964,1715975440248,-156.36643608,0.00016434,2]
[327300966,1715975440258,-3623.8873503,0.00016434,2]
[327300968,1715975440268,-16725.6204698,0.00016435,2]
[327300970,1715975440278,-500.0,0.00016438,2]
[327300972,1715975440288,-508.46671421,0.00016438,2]
[327300974,1715975440297,-500.69722533,0.00016438,2]
[327300976,1715975440307,-600.05914449,0.00016438,2]
[327300978,1715975440317,-299.6376765,0.00016438,2]
[327300980,1715975440327,-611.27,0.00016438,2]
[327300982,1715975440337,-500.0,0.00016438,2]
[327300984,1715975440347,-500.0,0.00016438,2]
[327300986,1715975440356,-500.0,0.00016438,2]
[327300988,1715975440366,-572.20448515,0.00016438,2]
[327300990,1715975440376,-500.0,0.00016438,2]
[327300992,1715975440388,-533.41,0.00016438,2]
[327300994,1715975440398,-504.8335611,0.00016438,2]
[327300996,1715975440408,-500.0,0.00016438,2]
[327300998,1715975440416,-500.0,0.00016438,2]
[327301000,1715975440427,-500.0,0.00016438,2]
[327301002,1715975440436,-500.0,0.00016438,2]
[327301004,1715975440445,-500.0,0.00016438,2]
[327301006,1715975440455,-500.0,0.00016438,2]
[327301008,1715975440468,-500.0,0.00016438,2]
[327301010,1715975440478,-500.0,0.00016438,2]
[327301012,1715975440488,-500.0,0.00016438,2]
[327301014,1715975440497,-500.0,0.00016438,2]
[327301016,1715975440507,-488.74673176,0.00016438,2]
[327301018,1715975440518,-500.0,0.00016438,2]
[327301020,1715975440528,-151.339513,0.00016438,2]
[327301022,1715975440538,-507.45,0.00016438,2]
[327301024,1715975440548,-151.0,0.00016438,2]
[327301026,1715975440557,-517.6,0.00016438,2]
[327301028,1715975440567,-151.0,0.00016438,2]
[327301029,1715975440576,-151.0,0.00016438,2]
[327301031,1715975440586,-518.33,0.00016438,2]
[327301033,1715975440595,-500.0,0.00016438,2]
[327301035,1715975440604,-500.0,0.00016438,2]
[327301037,1715975440613,-500.0,0.00016438,2]
[327301039,1715975440623,-500.0,0.00016438,2]
[327301041,1715975440632,-535.13,0.00016438,2]
[327301043,1715975440642,-516.78,0.00016438,4]
[327301045,1715975440651,-405.09102295,0.00016438,2]
[327301047,1715975440661,-525.43981827,0.00016438,2]
[327301050,1715975440671,-151.0,0.00016438,2]
[327301051,1715975440680,-500.0,0.00016438,2]
[327301054,1715975440691,-217.98,0.00016438,2]
[327301056,1715975440701,-500.0,0.00016438,2]
[327301058,1715975440710,-500.0,0.00016438,2]
[327301060,1715975440719,-500.0,0.00016438,2]
[327301062,1715975440728,-500.0,0.00016438,2]
[327301063,1715975440738,-428.37399519,0.00016438,2]
[327301065,1715975440747,-500.0,0.00016438,2]
[327301067,1715975440757,-500.0,0.00016438,2]
[327301069,1715975440766,-500.01708378,0.00016438,2]
[327301071,1715975440775,-500.0,0.00016438,2]
[327301073,1715975440784,-500.0,0.00016438,2]
[327301075,1715975440794,-500.0,0.00016438,2]
[327301077,1715975440803,-1001.47319909,0.00016438,2]
[327301079,1715975440812,-500.0,0.00016438,2]
[327301081,1715975440823,-500.56346249,0.00016438,2]
[327301084,1715975440833,-529.58,0.00016438,2]
[327301086,1715975440842,-500.0,0.00016438,2]
[327301087,1715975440852,-502.60247315,0.00016438,2]
[327301090,1715975440861,-289.881753,0.00016438,2]
[327301091,1715975440870,-151.0,0.00016438,2]
[327301094,1715975440880,-500.0,0.00016438,2]
[327301096,1715975440889,-227.21197337,0.00016438,2]
[327301097,1715975440898,-500.0,0.00016438,2]
[327301099,1715975440908,-556.11,0.00016438,2]
[327301102,1715975440918,-500.0,0.00016438,2]
[327301104,1715975440927,-500.0,0.00016438,2]
[327301105,1715975440937,-500.0,0.00016438,2]
[327301107,1715975440946,-500.0,0.00016438,2]
[327301109,1715975440955,-151.0,0.00016438,2]
[327301112,1715975440965,-160.79929937,0.00016438,2]
[327301114,1715975440974,-500.0,0.00016438,2]
[327301115,1715975440983,-500.0,0.00016438,2]
[327301117,1715975440992,-500.0,0.00016438,2]
[327301119,1715975441001,-500.0,0.00016438,2]
[327301121,1715975441010,-500.0,0.00016438,2]
[327301123,1715975441019,-500.0,0.00016438,2]
[327301125,1715975441028,-891.233393,0.00016438,2]
[327301127,1715975441037,-500.0,0.00016438,2]
[327301129,1715975441046,-891.233393,0.00016438,2]
[327301131,1715975441056,-500.0,0.00016438,2]
[327301133,1715975441065,-500.0,0.00016438,2]
[327301135,1715975441073,-500.0,0.00016438,2]
[327301137,1715975441082,-500.0,0.00016438,2]
[327301139,1715975441091,-500.0,0.00016438,2]
[327301141,1715975441100,-151.0,0.00016438,2]
[327301143,1715975441109,-500.0,0.00016438,2]
[327301145,1715975441119,-500.0,0.00016438,2]
[327301147,1715975441128,-370.92113487,0.00016438,2]
[327301150,1715975441137,-500.0,0.00016438,2]
[327301151,1715975441146,-151.0,0.00016438,2]
[327301154,1715975441155,-500.0,0.00016438,2]
[327301156,1715975441164,-2765.46,0.00016438,2]
[327301158,1715975441173,-151.0,0.00016438,2]
[327301159,1715975441183,-500.0,0.00016438,2]
[327301161,1715975441192,-500.0,0.00016438,2]
[327301163,1715975441201,-500.0,0.00016438,2]
[327301165,1715975441210,-500.0,0.00016438,2]
[327301167,1715975441219,-500.0,0.00016438,2]
[327301169,1715975441228,-500.0,0.00016438,2]
[327301171,1715975441237,-500.0,0.00016438,2]
[327301174,1715975441246,-151.0,0.00016438,2]
[327301175,1715975441255,-616.91,0.00016438,2]
[327301177,1715975441264,-353.97604713,0.00016438,2]
[327301565,1715975524093,154.70605849,9.999e-05,2]
[327301566,1715975530613,150.0,9.999e-05,2]
[327301567,1715975541043,273.37336231,9.9e-05,2]
[327301568,1715975549590,273.37336231,9.9e-05,2]
[327301569,1715975558349,273.37336231,9.9e-05,2]
[327301570,1715975567160,273.37336231,9.9e-05,2]
[327301571,1715975577961,273.37336231,9.9e-05,2]
[327301572,1715975584592,1338.74026793,9.999e-05,2]
[327301573,1715975663118,370.90578869,9.999e-05,2]
[327301574,1715975675289,154.70605849,9.999e-05,2]
[327301575,1715975676618,316.09468062,9.999e-05,2]
[327301576,1715975677649,154.70605849,9.999e-05,2]
[327301577,1715975678210,154.70605849,9.999e-05,2]
[327301578,1715975680300,154.70605849,9.999e-05,2]
[327301579,1715975688160,157.91467169,9.999e-05,2]
[327301580,1715975689600,236.48555321,9.999e-05,2]
[327301581,1715975692570,284.99869591,9.999e-05,2]
[327301582,1715975801206,818.20300932,9.999e-05,2]
[327301583,1715975844632,1338.74026793,9.999e-05,2]
[327301584,1715975856057,154.70605849,9.999e-05,2]
[327301585,1715975866209,154.70605849,9.999e-05,2]
[327301586,1715975878074,492.79282332,9.999e-05,2]
[327301587,1715975878346,154.70605849,9.999e-05,2]
[327301588,1715975878613,343.5783905,9.999e-05,2]
[327301589,1715975878635,175.0,9.999e-05,2]
[327301590,1715976123658,506.0,0.00023,30]
[327301591,1715976359152,-154.70605849,9.96e-05,2]
[327301592,1715976359171,-1581.20220046,9.96e-05,2]
[327301593,1715976359191,-1338.74026793,9.961e-05,2]
[327301594,1715976359211,-443.46466124,9.961e-05,2]
[327301595,1715976427086,-448.09372817,9.956e-05,2]